[Event "Israel-ch Youth U8-18 2024"]
[Site "Kfar Saba"]
[Date "2024.04.18"]
[Round "5.15"]
[White "Cohen, Israel"]
[Black "Blekh, Erik"]
[Result "1/2-1/2"]
[ECO "E61"]
[WhiteElo "1763"]
[BlackElo "1696"]
[Annotator "NA RC COMBH"]
[PlyCount "69"]
[EventDate "2024.04.10"]
[EventType "swiss"]
[EventCountry "ISR"]
[SourceTitle "playchess.com"]
[Source "ChessBase"]
[SourceQuality "1"]
[TimeControl "5400+30"]

1. d4 {[%emt 0:00:01]} Nf6 {[%emt 0:00:17]} 2. c4 {[%emt 0:00:13]} g6 {[%emt 0:00:13]} 3. Nc3 {[%emt 0:00:18]} Bg7 {[%emt 0:00:19]} 4. Nf3 {[%emt 0:00:31]} O-O {[%emt 0:00:31]} 5. Bf4 {[%emt 0:00:13]} d6 {[%emt 0:00:36]} 6. e3 {[%emt 0:00:13]} Nbd7 {[%emt 0:01:13]} 7. h3 {[%emt 0:00:56]} b6 {[%emt 0:03:49]} 8. Be2 {[%emt 0:01:03]} Bb7 {[%emt 0:01:33]} 9. O-O {[%emt 1:31:32]} Re8 {[%emt 0:02:53]} 10. b4 {[%emt 0:00:00]} a5 {[%emt 0:19:13]} 11. b5 {[%emt 0:00:00]} h6 {[%emt 0:04:19]} 12. Rc1 {[%emt 0:00:00]} Ne4 {[%emt 0:09:10]} 13. Nxe4 {[%emt 0:00:00]} Bxe4 {[%emt 0:00:14]} 14. Nd2 {[%emt 0:00:00]} Bb7 {[%emt 0:01:18]} 15. Bg3 {[%emt 0:00:00]} e5 {[%emt 0:06:15]} 16. Bf3 {[%emt 0:00:00]} Bxf3 {[%emt 0:04:52]} 17. Nxf3 {[%emt 0:00:00]} Kh8 {[%emt 0:04:12]} 18. dxe5 {[%emt 0:00:00]} dxe5 {[%emt 0:00:53]} 19. Qd5 {[%emt 0:00:00]} Qe7 {[%emt 0:06:34]} 20. Rfd1 {[%emt 0:00:00]} Nc5 {[%emt 0:07:29]} 21. Qc6 {[%emt 0:00:00]} Rad8 {[%emt 0:03:51]} 22. Ne1 {[%emt 0:02:39]} Kh7 {[%emt 0:03:56]} 23. Qf3 {[%emt 0:01:52]} f5 {[%emt 0:04:12]} 24. Qe2 {[%emt 0:00:50]} Qf7 {[%emt 0:05:07]} 25. Nd3 {[%emt 0:00:56]} Nxd3 {[%emt 0:01:35]} 26. Rxd3 {[%emt 0:00:32]} Rxd3 {[%emt 0:01:38]} 27. Qxd3 {[%emt 0:00:07]} Bf6 {[%emt 0:01:05]} 28. Qd5 {[%emt 0:00:44]} Kg7 {[%emt 0:04:02]} 29. Qxf7+ {[%emt 0:02:20]} Kxf7 {[%emt 0:00:08]} 30. c5 {[%emt 0:00:00]} Re6 {[%emt 0:01:05]} 31. cxb6 {[%emt 0:00:00]} cxb6 {[%emt 0:00:06]} 32. Rc7+ {[%emt 0:00:00]} Re7 {[%emt 0:00:17]} 33. Rc6 {[%emt 0:00:00]} Re6 {[%emt 0:00:13]} 34. Rc7+ {[%emt 0:00:13]} Re7 {[%emt 0:00:08]} 35. Rc6 {[%emt 0:00:33]} 1/2-1/2

[Event "Israel-ch Youth U8-18 2024"]
[Site "Kfar Saba"]
[Date "2024.04.18"]
[Round "5.16"]
[White "Sivan, Leeor"]
[Black "Mankovich, Yoav"]
[Result "0-1"]
[ECO "B40"]
[WhiteElo "1462"]
[BlackElo "1445"]
[Annotator "NA RC COMBH"]
[PlyCount "58"]
[EventDate "2024.04.10"]
[EventType "swiss"]
[EventCountry "ISR"]
[SourceTitle "playchess.com"]
[Source "ChessBase"]
[SourceQuality "1"]
[TimeControl "5400+30"]

1. e4 {[%emt 0:00:13]} e6 {[%emt 0:00:08]} 2. d3 {[%emt 0:00:14]} c5 {[%emt 0:00:29]} 3. Nf3 {[%emt 0:05:22]} h6 {[%emt 0:00:42]} 4. Nbd2 {[%emt 0:01:47]} Nc6 {[%emt 0:00:59]} 5. g3 {[%emt 0:03:41]} Nf6 {[%emt 0:01:22]} 6. Bg2 {[%emt 0:00:34]} d5 {[%emt 0:00:27]} 7. O-O {[%emt 0:01:41]} Be7 {[%emt 0:01:33]} 8. Re1 {[%emt 0:01:19]} O-O {[%emt 0:00:21]} 9. b3 {[%emt 0:01:55]} a5 {[%emt 0:02:30]} 10. a4 {[%emt 0:02:26]} Nb4 {[%emt 0:00:31]} 11. Ba3 {[%emt 0:03:57]} Qc7 {[%emt 0:04:23]} 12. Bxb4 {[%emt 0:01:23]} axb4 {[%emt 0:07:38]} 13. d4 {[%emt 0:01:54]} cxd4 {[%emt 0:03:35]} 14. Nxd4 {[%emt 0:00:22]} Bc5 {[%emt 0:00:44]} 15. N4f3 {[%emt 0:07:13]} Qb6 {[%emt 0:00:41]} 16. Re2 {[%emt 0:07:39]} dxe4 {[%emt 0:01:31]} 17. Nxe4 {[%emt 0:00:38]} Nxe4 {[%emt 0:00:35]} 18. Rxe4 {[%emt 0:00:51]} Bxf2+ {[%emt 0:00:17]} 19. Kh1 {[%emt 0:00:36]} Ra5 {[%emt 0:02:20]} 20. Qd2 {[%emt 0:01:38]} Rh5 {[%emt 0:05:19]} 21. g4 {[%emt 0:06:24]} Rd5 {[%emt 0:00:35]} 22. Qxb4 {[%emt 0:01:04]} Qxb4 {[%emt 0:15:56]} 23. Rxb4 {[%emt 0:00:30]} Rfd8 {[%emt 0:00:31]} 24. Bf1 {[%emt 0:02:47]} b6 {[%emt 0:03:46]} 25. h3 {[%emt 0:04:37]} Bb7 {[%emt 0:01:19]} 26. Kh2 {[%emt 0:01:08]} Rc5 {[%emt 0:01:52]} 27. Ng1 {[%emt 0:03:19]} Rxc2 {[%emt 0:01:22]} 28. Bg2 {[%emt 0:01:02]} Bc5 {[%emt 0:00:33]} 29. Nf3 {[%emt 0:00:56]} Bxf3 {[%emt 0:02:13]} 0-1

[Event "Israel-ch Youth U8-18 2024"]
[Site "Kfar Saba"]
[Date "2024.04.19"]
[Round "6.1"]
[White "Sokolovsky, Yahli"]
[Black "Aizenberg, Benny"]
[Result "1/2-1/2"]
[ECO "B45"]
[WhiteElo "2490"]
[BlackElo "2409"]
[Annotator "TA"]
[PlyCount "62"]
[EventDate "2024.04.10"]
[EventType "swiss"]
[EventCountry "ISR"]
[SourceTitle "playchess.com"]
[Source "ChessBase"]
[SourceQuality "1"]
[TimeControl "5400+30"]

{[%evp 15,62,10,32,20,25,29,33,45,35,29,30,37,60,49,59,27,22,36,45,47,52,36,35,42,35,0,0,0,22,9,0,0,20,0,0,0,0,0,0,0,0,0,0,0,0,0,0,0,0]} 1. e4 {[%emt 0:00:03]} c5 {[%emt 0:00:05]} 2. Nf3 {[%emt 0:00:04]} e6 {[%emt 0:00:03]} 3. d4 {[%emt 0:00:05]} cxd4 {[%emt 0:00:02]} 4. Nxd4 {[%emt 0:00:07]} Nf6 {[%emt 0:00:04]} 5. Nc3 {[%emt 0:00:07]} Nc6 {[%emt 0:00:02]} 6. Nxc6 {[%emt 0:00:13]} bxc6 {[%emt 0:00:04]} 7. e5 {[%emt 0:00:07]} Nd5 {[%emt 0:00:03]} 8. Ne4 {[%emt 0:00:05]} Bb7 {[%emt 0:00:03]} 9. Be2 {[%emt 0:01:04]} c5 {[%emt 0:00:08]} 10. O-O {[%emt 0:00:16]} Qc7 {[%emt 0:00:03] [#]} 11. Nd6+ $1 {[%emt 0:00:15] White is slightly better.} Bxd6 {[%emt 0:00:05]} 12. exd6 {[%emt 0:00:08]} Qb6 {[%emt 0:01:30][%cal Oa8c8]} (12... Qxd6 $2 {loses.} 13. c4 $18) 13. a3 {[%emt 0:11:43]} a5 {[%emt 0:07:55][%cal Oe8g8]} 14. c4 {[%emt 0:03:37]} Nf6 {[%emt 0:00:03]} 15. Be3 {[%emt 0:03:15][%cal Ob2b4] b4! is the strong threat.} O-O {[%emt 0:16:06]} 16. f3 {[%emt 0:06:00] Inhibits Be4.} Rfc8 {[%emt 0:09:50]} 17. Rb1 {[%emt 0:10:00][%cal Ob2b4,Ba1b1,Bb1b3,Bb3b7][%mdl 32]} a4 {[%emt 0:03:37]} 18. b4 {[%emt 0:01:08] [#] Threatens to win with Qd2.} axb3 {[%emt 0:00:04]} 19. Rxb3 {[%emt 0:13:26]} Qa7 {[%emt 0:00:08] Black is weak on the dark squares} 20. Qa1 {[%emt 0:08:15]} Bc6 {[%emt 0:05:47] The position is equal.} 21. Rfb1 {[%emt 0:00:33]} Ba4 {[%emt 0:02:48]} 22. Rb7 {[%emt 0:02:14]} Qa5 {[%emt 0:00:10]} 23. Qb2 {[%emt 0:02:10]} Ne8 {[%emt 0:06:01]} 24. Bd2 {[%emt 0:01:41]} Qd8 {[%emt 0:01:48]} 25. Bf4 {[%emt 0:00:48]} Qf6 {[%emt 0:05:24]} 26. Qxf6 {[%emt 0:02:02]} gxf6 {[%emt 0:00:41]} 27. R7b6 {[%emt 0:02:12]} Kg7 {[%emt 0:01:21]} 28. Be3 {[%emt 0:02:46]} Ra5 {[%emt 0:04:09]} 29. Bd2 {[%emt 0:01:10]} Raa8 {[%emt 0:00:08]} 30. Be3 {[%emt 0:01:23]} Ra5 {[%emt 0:04:26]} 31. Bd2 {[%emt 0:01:41]} Raa8 {[%emt 0:00:37] Weighted Error Value: White=0.05 (flawless) /Black=0.04 (flawless) .  Inaccurate:     	White=2     	---        OK:         	White=12    	Black=14     Best:        	---       	Black=2} 1/2-1/2

[Event "Israel-ch Youth U8-18 2024"]
[Site "Kfar Saba"]
[Date "2024.04.19"]
[Round "6.2"]
[White "Pelech, Roee"]
[Black "Levin, Guy"]
[Result "0-1"]
[ECO "B11"]
[WhiteElo "2215"]
[BlackElo "2451"]
[Annotator "TA"]
[PlyCount "76"]
[EventDate "2024.04.10"]
[EventType "swiss"]
[EventCountry "ISR"]
[SourceTitle "playchess.com"]
[Source "ChessBase"]
[SourceQuality "1"]
[TimeControl "5400+30"]

{[%evp 9,76,0,15,-28,-12,-26,35,33,66,38,34,-125,-122,-160,-162,-158,-155,-169,-121,-139,-133,-133,-130,-212,-153,-175,-80,-201,-199,-196,-195,-202,-192,-175,-176,-162,-114,-211,-207,-244,-158,-275,-268,-264,-269,-291,-297,-411,-406,-413,-369,-395,-325,-345,-343,-473,-500,-516,-518,-800,-796,-934,-919,-909,-902,-1335,-1208,-29992,-29993]} 1. e4 {[%emt 0:00:03]} c6 {[%emt 0:00:16]} 2. Nf3 {[%emt 0:00:17]} d5 {[%emt 0:00:06]} 3. Nc3 {[%emt 0:00:01]} Bg4 {[%emt 0:00:26]} 4. d4 {[%emt 0:00:13]} e6 {[%emt 0:02:16]} 5. Be2 {[%emt 0:00:56]} Bb4 {[%emt 0:02:06]} 6. e5 {[%emt 0:03:05]} c5 {[%emt 0:11:46]} 7. a3 {[%emt 0:02:34]} Ba5 {[%emt 0:00:35] [#]} (7... Bxc3+ $11 8. bxc3 Qa5) 8. b4 $1 $14 {[%emt 0:02:32] White is slightly better.} Bxf3 {[%emt 0:07:47]} (8... cxd4 9. Nxd4) 9. Bxf3 {[%emt 0:05:32]} cxd4 {[%emt 0:00:44]} 10. Qxd4 {[%emt 0:17:49]} (10. Nxd5 $1 $14 {was forced to keep a grip.} exd5 11. bxa5) 10... Nc6 $17 {[%emt 0:10:19]} 11. Qc5 {[%emt 0:15:08]} Bb6 {[%emt 0:03:03]} 12. Qb5 {[%emt 0:01:19]} a6 $36 {[%emt 0:01:29][%mdl 2048] White is under strong pressure.} 13. Qe2 {[%emt 0:00:58]} Qc7 {[%emt 0:08:23]} (13... Nd4 $19 14. Qd3 Rc8) 14. O-O {[%emt 0:05:52]} Nge7 {[%emt 0:08:32][%cal Oc6d4]} 15. Bb2 {[%emt 0:01:50]} O-O {[%emt 0:07:44]} 16. Rad1 {[%emt 0:05:06]} (16. Bg4 $17) 16... Nd4 {[%emt 0:05:28]} (16... Qxe5 17. Nxd5 Qxb2 18. Nxb6 $11) 17. Qd3 {[%emt 0:05:58]} Rac8 {[%emt 0:02:29]} (17... Qxe5 18. Nxd5 exd5 19. Bxd4 Qxd4 20. Qxd4 Bxd4 21. Rxd4 $11) (17... Ng6 $19 {is more deadly.} 18. Qe3 Nxf3+ (18... Nxc2 $2 19. Nxd5 exd5 20. Qd2 $19) (18... Qxe5 19. Nxd5 Qxe3 20. Nxe3 $17) 19. Qxf3 Nxe5) 18. Na4 {[%emt 0:03:29]} (18. Bg4 $17 {might work better.}) 18... Nxf3+ $19 {[%emt 0:00:36]} (18... Nxc2 19. Nxb6 Qxb6 20. Rd2 $18) 19. Qxf3 {[%emt 0:00:02]} Ba7 {[%emt 0:00:39]} (19... Qxc2 20. Nxb6 Qxb2 21. Nxc8 Rxc8 22. Qe3 $16) 20. Rd2 {[%emt 0:04:18]} Ng6 {[%emt 0:02:43]} 21. Qg3 {[%emt 0:03:40]} b5 {[%emt 0:02:15]} 22. Nc3 {[%emt 0:01:02]} Qe7 {[%emt 0:02:34]} (22... Nxe5 23. Nxd5 $16) (22... Qxe5 23. Qxe5 Nxe5 24. Nxd5 exd5 25. Bxe5 $11) ({Black should play} 22... Qb8 $19 {[%cal Oc8c4]} 23. Kh1 Rc4 (23... Nxe5 24. Nxd5 Ng6 25. Ne7+ Kh8 26. Nxc8 $16) (23... Qxe5 24. Qxe5 Nxe5 25. Nxd5 $17)) 23. Kh1 {[%emt 0:20:16] [#]} (23. Ne2 $17 {was called for.}) 23... Rc4 $1 {[%emt 0:01:17]} (23... f6 24. exf6 Qxf6 25. Nd1 $17) 24. f4 {[%emt 0:00:00]} Qh4 {[%emt 0:01:53]} 25. f5 {[%emt 0:00:00]} (25. Ne2 $17) 25... Qxg3 {[%emt 0:00:26]} 26. hxg3 {[%emt 0:00:00]} Ne7 {[%emt 0:00:09]} (26... Nxe5 27. Nxd5 exd5 28. Bxe5 $15) 27. f6 {[%emt 0:00:00]} Ng6 {[%emt 0:04:32]} 28. fxg7 {[%emt 0:00:00]} Rfc8 {[%emt 0:01:01]} (28... Kxg7 29. Ba1 $19) 29. Rd3 {[%emt 0:00:00]} Bb8 {[%emt 0:01:15]} ({Don't play} 29... Kxg7 30. Rdf3 Rf8 (30... Nxe5 $2 31. Nxb5 Bb8 32. Na7 $19) 31. a4) (29... Nxe5 30. Nxd5 exd5 31. Bxe5 $11) 30. Nd1 {[%emt 0:01:47]} Bxe5 {[%emt 0:02:59]} 31. c3 {[%emt 0:01:01]} Bxg7 {[%emt 0:00:50]} 32. Bc1 {[%emt 0:01:42]} d4 {[%emt 0:02:31]} 33. Bg5 {[%emt 0:00:00]} h6 {[%emt 0:00:35]} 34. Bf6 {[%emt 0:00:28]} (34. Bc1 $142) 34... Bxf6 {[%emt 0:00:14]} 35. Rxf6 {[%emt 0:00:01]} dxc3 {[%emt 0:00:16]} 36. Nxc3 {[%emt 0:00:13]} Rxc3 {[%emt 0:00:08]} 37. Rd7 {[%emt 0:00:02]} Ne5 {[%emt 0:00:39] ( -> ...Rc1+)} 38. Ra7 {[%emt 0:00:47]} Rc1+ {[%emt 0:00:05] Weighted Error Value: White=0.80/Black=0.25 (precise) .  Mistake:       	White=6     	Black=4      Inaccurate:     	White=4     	Black=2      OK:         	White=8     	Black=16     Best:        	---       	Black=1} 0-1

[Event "Israel-ch Youth U8-18 2024"]
[Site "Kfar Saba"]
[Date "2024.04.19"]
[Round "6.3"]
[White "Ashkenazy, Nir"]
[Black "Rozen, Eytan"]
[Result "0-1"]
[ECO "B13"]
[WhiteElo "1647"]
[BlackElo "2499"]
[Annotator "TA"]
[PlyCount "78"]
[EventDate "2024.04.10"]
[EventType "swiss"]
[EventCountry "ISR"]
[SourceTitle "playchess.com"]
[Source "ChessBase"]
[SourceQuality "1"]
[TimeControl "5400+30"]

{[%evp 13,78,9,29,37,38,32,34,31,34,42,25,37,37,8,6,16,11,-30,-27,-55,-58,-60,-68,-76,-60,-68,-68,-121,-123,-137,-138,-139,-143,-147,-78,-457,-461,-550,-475,-557,-535,-507,-561,-587,-584,-560,-550,-934,-933,-953,-772,-718,-525,-922,-943,-957,-945,-1006,-1193,-1592,-1508,-29986,-29987,-29987,-29988,-29988,-29989]} 1. e4 {[%emt 0:00:02]} c6 {[%emt 0:00:20]} 2. d4 {[%emt 0:00:33]} d5 {[%emt 0:00:09]} 3. exd5 {[%emt 0:00:20]} cxd5 {[%emt 0:00:05]} 4. Bd3 {[%emt 0:00:05]} Nc6 {[%emt 0:00:15]} 5. c3 {[%emt 0:00:04]} g6 {[%emt 0:00:04]} 6. Bf4 {[%emt 0:00:20]} Bf5 {[%emt 0:01:46]} 7. Nf3 {[%emt 0:00:46]} Nf6 {[%emt 0:00:42]} 8. Bxf5 {[%emt 0:02:06]} gxf5 {[%emt 0:00:05]} 9. Nbd2 {[%emt 0:00:18]} e6 {[%emt 0:00:56]} 10. Ne5 {[%emt 0:02:44] White is slightly better.} Bd6 {[%emt 0:02:54]} 11. Nxc6 {[%emt 0:03:02]} bxc6 {[%emt 0:00:01]} 12. Bxd6 {[%emt 0:00:28]} Qxd6 {[%emt 0:00:03]} 13. Qf3 {[%emt 0:04:53]} Ne4 {[%emt 0:02:39]} 14. Nxe4 {[%emt 1:21:49]} fxe4 {[%emt 0:00:16]} 15. Qg3 {[%emt 0:00:00]} Kd7 {[%emt 0:01:35]} 16. Qxd6+ {[%emt 0:00:00]} Kxd6 $11 {[%emt 0:00:06][%mdl 4096] Endgame. KRR-KRR} 17. Kd2 {[%emt 0:00:00]} f5 {[%emt 0:00:55]} 18. b4 {[%emt 0:00:00]} h5 {[%emt 0:04:15]} 19. a4 {[%emt 0:00:00]} f4 {[%emt 0:03:01]} 20. Rhg1 {[%emt 0:00:00]} (20. g3 $15) 20... h4 $17 {[%emt 0:02:22]} 21. g3 {[%emt 0:00:00] [#]} fxg3 {[%emt 0:01:10]} 22. hxg3 {[%emt 0:00:00]} Raf8 {[%emt 0:01:03]} 23. Raf1 {[%emt 0:00:00]} Rf3 {[%emt 0:05:10] Black is more active.} ({Black should play} 23... h3 {Hoping for ...h2.} 24. f3 e5 (24... exf3 25. Ke3 $17) (24... Rxf3 25. Rxf3 exf3 26. Ke3 $11)) 24. Kc2 $2 {[%emt 0:00:00][%mdl 8192] This costs White the game.} (24. gxh4 $17 Rxh4 25. Rg3) 24... h3 $19 {[%emt 0:03:18] Threatens to win with ...Rhf8.} 25. Kd2 {[%emt 0:00:00]} Rhf8 {[%emt 0:01:41]} 26. Rh1 {[%emt 0:00:00]} Rxf2+ {[%emt 0:01:01]} 27. Rxf2 {[%emt 0:00:00]} Rxf2+ {[%emt 0:00:07] KR-KR} 28. Ke1 {[%emt 0:00:00]} Rf3 {[%emt 0:00:37]} 29. Rxh3 {[%emt 0:00:00]} Rxc3 {[%emt 0:00:06]} 30. Rh7 {[%emt 0:00:00]} Rxg3 {[%emt 0:03:19]} 31. Rxa7 {[%emt 0:00:00]} Re3+ {[%emt 0:01:14]} 32. Kf2 {[%emt 0:00:00]} Rb3 {[%emt 0:04:32]} 33. Rb7 {[%emt 0:00:00]} Rd3 {[%emt 0:00:24]} 34. a5 {[%emt 0:00:00]} Rxd4 {[%emt 0:00:22]} 35. a6 {[%emt 0:00:00]} Rd2+ {[%emt 0:00:47]} 36. Ke3 {[%emt 0:00:00]} Ra2 {[%emt 0:00:12][%cal Od6e5] ( -> ...Ke5!)} 37. a7 {[%emt 0:11:30]} Ke5 {[%emt 0:00:55][%csl Ge5][%cal Rd5d4] Black mates.} 38. Rd7 {[%emt 0:00:00] [#]} d4+ $1 {[%emt 0:00:12]} 39. Rxd4 {[%emt 0:00:00]} Ra3+ {[%emt 0:00:07] Weighted Error Value: White=1.01/Black=0.11 (very precise) .  Loses game:     	White=1     	---        Mistake:       	White=1     	Black=1      Inaccurate:     	White=4     	---        OK:         	White=7     	Black=12     Best:        	---       	Black=2} ({Worse is} 39... Rxa7 40. Rxe4+ Kd6 41. Rd4+ Kc7 42. Kf4 $11) 0-1

[Event "Israel-ch Youth U8-18 2024"]
[Site "Kfar Saba"]
[Date "2024.04.19"]
[Round "6.4"]
[White "Meirovich, Ilay"]
[Black "Medovoy, Yaniv"]
[Result "0-1"]
[ECO "D26"]
[WhiteElo "1880"]
[BlackElo "2009"]
[Annotator "TA"]
[PlyCount "104"]
[EventDate "2024.04.10"]
[EventType "swiss"]
[EventCountry "ISR"]
[SourceTitle "playchess.com"]
[Source "ChessBase"]
[SourceQuality "1"]
[TimeControl "5400+30"]

{[%evp 14,104,0,0,0,-9,0,-11,-10,-6,0,-16,0,-31,-12,-8,-9,-12,-21,-43,-56,-54,-57,-65,-77,-76,-55,-50,-49,-129,-96,-137,-56,-72,-22,-62,-10,-21,-15,-21,-22,-52,0,-6,-9,-32,-21,-27,-28,-21,-25,-25,-30,-31,-39,-46,-56,-107,-54,-80,-31,-121,-128,-141,-110,-190,-190,-284,-262,-939,-664,-776,-993,-839,-764,-688,0,-1037,-1066,-1160,-1062,-989,-964,-802,-739,-706,-696,-656,-50,-743,-723,-777,-821]} 1. d4 {[%emt 0:00:03]} d5 {[%emt 0:00:04]} 2. c4 {[%emt 0:00:10]} e6 {[%emt 0:00:04]} 3. Nc3 {[%emt 0:00:03]} Nf6 {[%emt 0:01:37]} 4. Nf3 {[%emt 0:00:57]} dxc4 {[%emt 0:01:03]} 5. e3 {[%emt 0:06:34]} a6 {[%emt 0:00:07]} 6. Bxc4 {[%emt 0:00:07]} b5 {[%emt 0:00:04]} 7. Be2 {[%emt 0:10:36]} Bb7 {[%emt 0:00:04]} 8. O-O {[%emt 0:00:07]} Nbd7 {[%emt 0:00:35]} 9. b3 {[%emt 0:05:21]} Be7 {[%emt 0:01:36]} 10. Bb2 {[%emt 0:00:07]} O-O {[%emt 0:00:12] The position is equal.} 11. Rc1 {[%emt 0:00:43]} Rc8 {[%emt 0:02:50]} 12. h3 {[%emt 0:06:48]} h6 {[%emt 0:02:03]} 13. Re1 {[%emt 0:01:19]} c5 {[%emt 0:00:28]} 14. dxc5 {[%emt 0:00:16]} Nxc5 {[%emt 0:00:43]} 15. Qxd8 {[%emt 0:01:01]} Rfxd8 {[%emt 0:00:09]} 16. Nd4 {[%emt 0:01:51]} b4 {[%emt 0:02:16]} 17. Nb1 {[%emt 0:00:37]} Nfe4 {[%emt 0:00:06] Inhibits Nd2.} 18. Red1 {[%emt 0:01:06]} Bh4 {[%emt 0:04:57]} 19. g3 {[%emt 0:00:30]} Bf6 {[%emt 0:00:43]} 20. h4 {[%emt 0:40:26]} a5 {[%emt 0:11:49]} 21. Bb5 {[%emt 0:01:21]} (21. Nd2 $15) 21... g5 {[%emt 0:11:47] Black is more active.} 22. h5 {[%emt 0:00:32]} Bg7 {[%emt 0:01:35]} (22... g4 $17 23. Be2 a4 24. Bxg4 Bd5) 23. g4 $15 {[%emt 0:01:55]} Nf6 {[%emt 0:06:06]} (23... Nd6 $17 {aiming for ...Nxb5.} 24. Be2 Bd5) 24. Be2 {[%emt 0:01:17]} (24. f3 {feels hotter.} Nd5 25. Kf2 f5 26. Rxc5 Nxe3 27. Rdc1) 24... Ncd7 {[%emt 0:01:10]} ({Better is} 24... Ba6 $15 25. Bxa6 Nxa6 26. Rxc8 Rxc8) 25. f3 {[%emt 0:02:01]} Nd5 {[%emt 0:00:29]} 26. Kf2 {[%emt 0:00:07]} N7b6 {[%emt 0:02:18]} 27. Bb5 {[%emt 0:00:20]} Ne7 {[%emt 0:12:11]} (27... f5 $15 28. Rxc8 Rxc8) 28. Rxc8 $11 {[%emt 0:01:26]} Rxc8 {[%emt 0:02:57]} 29. Rc1 {[%emt 0:00:09]} Rxc1 {[%emt 0:02:05]} 30. Bxc1 {[%emt 0:00:01]} Bxd4 {[%emt 0:00:13]} 31. exd4 {[%emt 0:00:05]} Nbd5 {[%emt 0:00:22]} 32. Bc4 {[%emt 0:01:49]} Kg7 {[%emt 0:00:39]} 33. a3 {[%emt 0:00:39]} f5 {[%emt 0:01:18]} 34. axb4 {[%emt 0:00:06]} axb4 {[%emt 0:00:12]} 35. Bd2 {[%emt 0:00:36] [#]} (35. Nd2 $15) 35... Kf6 {[%emt 0:01:51]} ({Black should try} 35... Bc8 $1 $17 36. Be1 fxg4) 36. Bc1 {[%emt 0:07:11]} Nc6 {[%emt 0:07:08]} (36... Kf7 $17) 37. Bb2 {[%emt 0:02:28] Black converts the advantage convincingly.} (37. gxf5 $1 $15 Kxf5 38. Nd2) 37... Na5 $17 {[%emt 0:01:40]} 38. Ba1 {[%emt 0:01:35]} f4 {[%emt 0:06:13]} 39. Nd2 {[%emt 0:03:15] [#]} (39. Ke2 $17) 39... Nc3 $1 $19 {[%emt 0:00:26] Excellent horsemanship.} 40. Ke1 {[%emt 0:01:02]} (40. Bd3 {was necessary.}) 40... Bd5 {[%emt 0:00:16]} 41. Bxd5 $2 {[%emt 0:00:23]} (41. Kf2) 41... exd5 {[%emt 0:00:23][%mdl 4096] Endgame. KBN-KNN} 42. Kf2 {[%emt 0:01:34]} Nc6 {[%emt 0:00:25]} 43. Kg2 {[%emt 0:00:21]} Nb5 {[%emt 0:00:33]} 44. Bb2 {[%emt 0:00:48]} Nc3 {[%emt 0:01:20]} (44... Ke6 $142 45. Ba1 Nc3 (45... Ncxd4 $2 46. Kf2 $19)) 45. Ba1 {[%emt 0:00:19]} Nxd4 {[%emt 0:00:05] And now ...Ke5 would win.} 46. Nb1 {[%emt 0:00:07]} Ndb5 {[%emt 0:00:13] Hoping for ...Ke5.} (46... Nxb3 47. Nxc3 (47. Bxc3+ $2 bxc3 48. Nxc3 Ke5 $19) 47... Ke5 (47... Nxa1 48. Nxd5+ Ke6 49. Nxb4 $11) (47... bxc3 $2 48. Bxc3+ d4 49. Bb2 $19) 48. Na2+ Nxa1 49. Nxb4) 47. Kf2 {[%emt 0:00:24]} d4 {[%emt 0:00:05]} 48. Nd2 {[%emt 0:00:10]} Nd6 {[%emt 0:00:23]} 49. Ke1 {[%emt 0:00:36]} Ke5 {[%emt 0:00:15]} 50. Bb2 {[%emt 0:00:44]} d3 $2 {[%emt 0:00:28]} (50... Kd5 $19 51. Bc1 d3) 51. Nf1 $2 {[%emt 0:00:31][%mdl 8192]} (51. Nb1 $15 Ndb5 (51... Kd4 52. Kd2 $16) 52. Kd2) 51... Kd4 {[%emt 0:00:03]} 52. Kd2 {[%emt 0:00:04]} Nb7 {[%emt 0:00:49] Weighted Error Value: White=0.41/Black=0.39.  Mistake:       	White=6     	Black=6      Inaccurate:     	White=5     	---        OK:         	White=4     	Black=13     Best:        	White=3     	Black=1      Strong:       	---       	Black=1} 0-1